[Event "Goteborg Open 2018"]
[Site "Molnlycke kulturhus, Biblioteksgatan 2, Molnlycke, Sweden"]
[Date "2018.08.17"]
[Round "3.7"]
[White "Lacko, Pavel"]
[Black "Johansson, Roy"]
[Result "1/2-1/2"]
[TimeControl "15 minutes + 5 seconds per move from move one (Round 1 - 4) / 90 minutes + 30 seconds per move from move one (Round 5 - 8)"]
[WhiteFideId "1701274"]
[BlackFideId "1745972"]
[WhiteElo "2209"]
[BlackElo "1889"]

1. d4 {[%clk 00:15:02]} {[%emt 00:00:01]} f5 {[%clk 00:15:03]} {[%emt
00:00:03]} 2. Nf3 {[%clk 00:15:02]} {[%emt 00:00:05]} Nf6 {[%clk 00:15:06]}
{[%emt 00:00:01]} 3. g3 {[%clk 00:15:05]} {[%emt 00:00:02]} g6 {[%clk
00:15:10]} {[%emt 00:00:02]} 4. c4 {[%clk 00:15:06]} {[%emt 00:00:04]} Bg7
{[%clk 00:15:13]} {[%emt 00:00:02]} 5. Bg2 {[%clk 00:15:09]} {[%emt 00:00:02]}
O-O {[%clk 00:15:15]} {[%emt 00:00:03]} 6. O-O {[%clk 00:15:10]} {[%emt
00:00:04]} d6 {[%clk 00:15:18]} {[%emt 00:00:02]} 7. Nc3 {[%clk 00:15:12]}
{[%emt 00:00:04]} Nc6 {[%clk 00:15:16]} {[%emt 00:00:08]} 8. d5 {[%clk
00:15:08]} {[%emt 00:00:09]} Ne5 {[%clk 00:15:18]} {[%emt 00:00:03]} 9. Nxe5
{[%clk 00:14:59]} {[%emt 00:00:14]} dxe5 {[%clk 00:15:20]} {[%emt 00:00:02]} 10.
Rb1 {[%clk 00:14:23]} {[%emt 00:00:41]} e6 {[%clk 00:14:44]} {[%emt 00:00:41]}
11. Bg5 {[%clk 00:14:06]} {[%emt 00:00:22]} exd5 {[%clk 00:14:39]} {[%emt
00:00:11]} 12. Nxd5 {[%clk 00:13:46]} {[%emt 00:00:25]} c6 {[%clk 00:14:04]}
{[%emt 00:00:40]} 13. Nxf6+ {[%clk 00:12:25]} {[%emt 00:01:26]} Bxf6 {[%clk
00:14:01]} {[%emt 00:00:07]} 14. Qxd8 {[%clk 00:11:44]} {[%emt 00:00:47]} Bxd8
{[%clk 00:14:03]} {[%emt 00:00:03]} 15. Bh6 {[%clk 00:11:19]} {[%emt 00:00:29]}
Re8 {[%clk 00:13:39]} {[%emt 00:00:30]} 16. b4 {[%clk 00:09:58]} {[%emt
00:01:26]} Be6 {[%clk 00:13:10]} {[%emt 00:00:33]} 17. b5 {[%clk 00:09:49]}
{[%emt 00:00:15]} cxb5 {[%clk 00:12:08]} {[%emt 00:01:07]} 18. Bxb7 {[%clk
00:09:31]} {[%emt 00:00:23]} Rb8 {[%clk 00:11:41]} {[%emt 00:00:32]} 19. Bc6
{[%clk 00:09:31]} {[%emt 00:00:04]} Re7 {[%clk 00:11:26]} {[%emt 00:00:20]} 20.
cxb5 {[%clk 00:08:41]} {[%emt 00:00:56]} Bxa2 {[%clk 00:11:13]} {[%emt
00:00:17]} 21. Rb2 {[%clk 00:08:02]} {[%emt 00:00:44]} Bf7 {[%clk 00:10:51]}
{[%emt 00:00:27]} 22. Rd1 {[%clk 00:07:48]} {[%emt 00:00:19]} Rc7 {[%clk
00:09:49]} {[%emt 00:01:08]} 23. Rbd2 {[%clk 00:07:32]} {[%emt 00:00:20]} Bf6
{[%clk 00:08:53]} {[%emt 00:01:01]} 24. Rd6 {[%clk 00:07:20]} {[%emt 00:00:17]}
Be7 {[%clk 00:08:10]} {[%emt 00:00:47]} 25. Rd7 {[%clk 00:07:12]} {[%emt
00:00:13]} Rxd7 {[%clk 00:07:47]} {[%emt 00:00:28]} 26. Rxd7 {[%clk 00:07:00]}
{[%emt 00:00:17]} Bc5 {[%clk 00:07:45]} {[%emt 00:00:07]} 27. Kg2 {[%clk
00:05:23]} {[%emt 00:01:43]} Rc8 {[%clk 00:05:42]} {[%emt 00:02:07]} 28. Bg5
{[%clk 00:04:47]} {[%emt 00:00:41]} Be6 {[%clk 00:04:10]} {[%emt 00:01:37]} 29.
Rd8+ {[%clk 00:04:03]} {[%emt 00:00:49]} Rxd8 {[%clk 00:04:09]} {[%emt
00:00:06]} 30. Bxd8 {[%clk 00:04:05]} {[%emt 00:00:02]} 1/2-1/2

[Event "Goteborg Open 2018"]
[Site "Molnlycke kulturhus, Biblioteksgatan 2, Molnlycke, Sweden"]
[Date "2018.08.17"]
[Round "3.8"]
[White "Subramanian, Aditya"]
[Black "Ottgard, Andreas"]
[Result "1-0"]
[TimeControl "15 minutes + 5 seconds per move from move one (Round 1 - 4) / 90 minutes + 30 seconds per move from move one (Round 5 - 8)"]
[WhiteFideId "1718924"]
[BlackFideId "1730592"]
[WhiteElo "2151"]
[BlackElo "1871"]

1. c4 {[%clk 00:15:02]} {[%emt 00:00:03]} Nf6 {[%clk 00:14:53]} {[%emt
00:00:12]} 2. Nc3 {[%clk 00:15:05]} {[%emt 00:00:02]} g6 {[%clk 00:14:22]}
{[%emt 00:00:35]} 3. Nf3 {[%clk 00:14:14]} {[%emt 00:00:56]} Bg7 {[%clk
00:14:15]} {[%emt 00:00:13]} 4. d4 {[%clk 00:14:13]} {[%emt 00:00:06]} d6
{[%clk 00:13:47]} {[%emt 00:00:33]} 5. g3 {[%clk 00:14:07]} {[%emt 00:00:10]}
O-O {[%clk 00:13:37]} {[%emt 00:00:15]} 6. Bg2 {[%clk 00:14:12]} Nc6 {[%clk
00:12:43]} {[%emt 00:01:00]} 7. Bf4 {[%clk 00:14:11]} {[%emt 00:00:06]} Nd7
{[%clk 00:11:10]} {[%emt 00:01:39]} 8. Be3 {[%clk 00:13:34]} {[%emt 00:00:42]}
e5 {[%clk 00:10:47]} {[%emt 00:00:28]} 9. O-O {[%clk 00:13:32]} {[%emt
00:00:06]} exd4 {[%clk 00:10:04]} {[%emt 00:00:48]} 10. Nxd4 {[%clk 00:13:35]}
{[%emt 00:00:02]} Nde5 {[%clk 00:09:58]} {[%emt 00:00:11]} 11. Nxc6 {[%clk
00:13:18]} {[%emt 00:00:22]} bxc6 {[%clk 00:08:30]} {[%emt 00:01:34]} 12. c5
{[%clk 00:11:55]} {[%emt 00:01:27]} Rb8 {[%clk 00:06:48]} {[%emt 00:01:47]} 13.
b3 {[%clk 00:11:24]} {[%emt 00:00:35]} d5 {[%clk 00:06:24]} {[%emt 00:00:30]}
14. Bd4 {[%clk 00:11:08]} {[%emt 00:00:21]} Qe7 {[%clk 00:06:00]} {[%emt
00:00:30]} 15. Qd2 {[%clk 00:10:23]} {[%emt 00:00:50]} Nd7 {[%clk 00:04:39]}
{[%emt 00:01:26]} 16. b4 {[%clk 00:09:59]} {[%emt 00:00:28]} Ba6 {[%clk
00:03:40]} {[%emt 00:01:04]} 17. Rfe1 {[%clk 00:09:49]} {[%emt 00:00:16]} Bxd4
{[%clk 00:03:07]} {[%emt 00:00:37]} 18. Qxd4 {[%clk 00:09:53]} {[%emt
00:00:01]} Qe5 {[%clk 00:03:11]} {[%emt 00:00:02]} 19. Rad1 {[%clk 00:09:01]}
{[%emt 00:00:57]} Rfe8 {[%clk 00:03:03]} {[%emt 00:00:13]} 20. a3 {[%clk
00:08:50]} {[%emt 00:00:16]} Bc4 {[%clk 00:02:48]} {[%emt 00:00:20]} 21. e4
{[%clk 00:08:48]} {[%emt 00:00:07]} Qxd4 {[%clk 00:02:39]} {[%emt 00:00:15]} 22.
Rxd4 {[%clk 00:08:50]} {[%emt 00:00:02]} Nf6 {[%clk 00:02:27]} {[%emt
00:00:17]} 23. Red1 {[%clk 00:08:24]} {[%emt 00:00:31]} a5 {[%clk 00:02:01]}
{[%emt 00:00:31]} 24. bxa5 {[%clk 00:07:49]} {[%emt 00:00:40]} Rb3 {[%clk
00:02:00]} {[%emt 00:00:06]} 25. Rc1 {[%clk 00:07:00]} {[%emt 00:00:54]} Rxa3
{[%clk 00:01:30]} {[%emt 00:00:36]} 26. exd5 {[%clk 00:06:37]} {[%emt
00:00:27]} Rxc3 {[%clk 00:00:54]} {[%emt 00:00:40]} 27. Rxc4 {[%clk 00:06:26]}
{[%emt 00:00:18]} Rxc4 {[%clk 00:00:52]} {[%emt 00:00:07]} 28. Rxc4 {[%clk
00:06:28]} {[%emt 00:00:02]} Re1+ {[%clk 00:00:55]} {[%emt 00:00:02]} 29. Bf1
{[%clk 00:06:30]} {[%emt 00:00:03]} Ne4 {[%clk 00:00:26]} {[%emt 00:00:34]} 30.
Rd4 {[%clk 00:04:32]} {[%emt 00:02:03]} Nxc5 {[%clk 00:00:10]} {[%emt
00:00:21]} 31. dxc6 {[%clk 00:04:20]} {[%emt 00:00:17]} Ra1 {[%clk 00:00:10]}
{[%emt 00:00:05]} 32. a6 {[%clk 00:04:12]} {[%emt 00:00:14]} 1-0

[Event "Goteborg Open 2018"]
[Site "Molnlycke kulturhus, Biblioteksgatan 2, Molnlycke, Sweden"]
[Date "2018.08.17"]
[Round "3.9"]
[White "Petersson, Baldur Teodor"]
[Black "Andersson, Stig"]
[Result "1-0"]
[TimeControl "15 minutes + 5 seconds per move from move one (Round 1 - 4) / 90 minutes + 30 seconds per move from move one (Round 5 - 8)"]
[WhiteTitle "CM"]
[WhiteFideId "2309157"]
[BlackFideId "1731971"]
[WhiteElo "2138"]
[BlackElo "1865"]

1. e4 {[%clk 00:15:02]} {[%emt 00:00:02]} d6 {[%clk 00:14:55]} {[%emt
00:00:10]} 2. Nc3 {[%clk 00:15:00]} {[%emt 00:00:07]} g6 {[%clk 00:14:53]}
{[%emt 00:00:07]} 3. g3 {[%clk 00:15:04]} {[%emt 00:00:02]} Bg7 {[%clk
00:14:54]} {[%emt 00:00:03]} 4. Bg2 {[%clk 00:15:07]} {[%emt 00:00:02]} Nf6
{[%clk 00:14:54]} {[%emt 00:00:05]} 5. d3 {[%clk 00:15:10]} {[%emt 00:00:03]}
O-O {[%clk 00:14:52]} {[%emt 00:00:06]} 6. f4 {[%clk 00:15:12]} {[%emt
00:00:03]} c6 {[%clk 00:14:47]} {[%emt 00:00:10]} 7. Nf3 {[%clk 00:15:04]}
{[%emt 00:00:13]} Nbd7 {[%clk 00:14:30]} {[%emt 00:00:21]} 8. O-O {[%clk
00:15:05]} {[%emt 00:00:04]} e5 {[%clk 00:13:26]} {[%emt 00:01:09]} 9. h3
{[%clk 00:14:18]} {[%emt 00:00:53]} exf4 {[%clk 00:13:19]} {[%emt 00:00:12]} 10.
Bxf4 {[%clk 00:14:20]} {[%emt 00:00:02]} Qb6+ {[%clk 00:12:50]} {[%emt
00:00:34]} 11. Kh2 {[%emt 00:00:21]} Qxb2 {[%clk 00:12:32]} {[%emt 00:00:20]}
12. Qd2 {[%clk 00:14:10]} {[%emt 00:00:02]} Qa3 {[%clk 00:12:28]} {[%emt
00:00:08]} 13. d4 {[%clk 00:12:47]} {[%emt 00:01:30]} Nb6 {[%clk 00:10:17]}
{[%emt 00:02:15]} 14. Rab1 {[%clk 00:12:26]} {[%emt 00:00:26]} Nc4 {[%clk
00:09:59]} {[%emt 00:00:23]} 15. Qd3 {[%clk 00:12:30]} {[%emt 00:00:02]} Qa6
{[%clk 00:08:48]} {[%emt 00:01:16]} 16. g4 {[%clk 00:11:24]} {[%emt 00:01:10]}
Ne8 {[%clk 00:07:03]} {[%emt 00:01:49]} 17. Rb4 {[%clk 00:10:23]} {[%emt
00:01:08]} b5 {[%clk 00:07:03]} {[%emt 00:00:05]} 18. a4 {[%clk 00:10:19]}
{[%emt 00:00:09]} Rb8 {[%clk 00:06:34]} {[%emt 00:00:33]} 19. Rfb1 {[%clk
00:09:28]} {[%emt 00:00:56]} Bd7 {[%clk 00:06:20]} {[%emt 00:00:19]} 20. axb5
{[%clk 00:08:52]} {[%emt 00:00:42]} cxb5 {[%clk 00:06:21]} {[%emt 00:00:03]} 21.
Nxb5 {[%clk 00:08:35]} {[%emt 00:00:22]} Bxb5 {[%clk 00:05:43]} {[%emt
00:00:43]} 22. Rxb5 {[%clk 00:08:39]} {[%emt 00:00:02]} Rxb5 {[%clk 00:05:17]}
{[%emt 00:00:31]} 23. Qxc4 {[%clk 00:08:43]} {[%emt 00:00:02]} Rb6 {[%clk
00:04:48]} {[%emt 00:00:33]} 24. Qxa6 {[%clk 00:08:32]} {[%emt 00:00:17]} Rxa6
{[%clk 00:04:50]} {[%emt 00:00:03]} 25. c4 {[%clk 00:08:36]} Nc7 {[%clk
00:04:38]} {[%emt 00:00:17]} 26. c5 {[%clk 00:08:39]} {[%emt 00:00:02]} Ne6
{[%clk 00:04:39]} {[%emt 00:00:04]} 27. Bxd6 {[%clk 00:08:38]} {[%emt
00:00:06]} Rc8 {[%clk 00:04:33]} {[%emt 00:00:09]} 28. Rb4 {[%clk 00:08:10]}
{[%emt 00:00:34]} Bf8 {[%clk 00:04:23]} {[%emt 00:00:16]} 29. e5 {[%clk
00:08:00]} {[%emt 00:00:15]} Nf4 {[%clk 00:04:20]} {[%emt 00:00:08]} 30. Bf1
{[%clk 00:07:20]} {[%emt 00:00:45]} Ra2+ {[%clk 00:04:22]} {[%emt 00:00:02]} 31.
Kg3 {[%clk 00:07:24]} Nd5 {[%clk 00:04:20]} {[%emt 00:00:07]} 32. Rb7 {[%clk
00:07:27]} {[%emt 00:00:02]} Ne3 {[%clk 00:04:20]} {[%emt 00:00:05]} 33. Bd3
{[%clk 00:05:44]} {[%emt 00:01:49]} Bh6 {[%clk 00:04:20]} {[%emt 00:00:05]} 34.
g5 {[%clk 00:04:54]} {[%emt 00:00:55]} Bf8 {[%clk 00:03:22]} {[%emt 00:01:04]}
35. Be4 {[%clk 00:04:42]} {[%emt 00:00:17]} a5 {[%clk 00:02:55]} {[%emt
00:00:31]} 36. c6 {[%clk 00:04:09]} {[%emt 00:00:38]} h5 {[%clk 00:01:12]}
{[%emt 00:01:48]} 37. c7 {[%clk 00:03:38]} {[%emt 00:00:36]} Nf1+ {[%clk
00:00:49]} {[%emt 00:00:28]} 38. Kf4 {[%clk 00:03:15]} {[%emt 00:00:29]} Nd2
{[%clk 00:00:28]} {[%emt 00:00:26]} 39. Nxd2 {[%clk 00:03:03]} {[%emt
00:00:17]} Rxd2 {[%clk 00:00:30]} {[%emt 00:00:03]} 40. Rb8 {[%clk 00:03:06]}
{[%emt 00:00:02]} 1-0

[Event "Goteborg Open 2018"]
[Site "Molnlycke kulturhus, Biblioteksgatan 2, Molnlycke, Sweden"]
[Date "2018.08.17"]
[Round "3.10"]
[White "Knutsson, Hakan"]
[Black "Bengtsson, Siv"]
[Result "1-0"]
[TimeControl "15 minutes + 5 seconds per move from move one (Round 1 - 4) / 90 minutes + 30 seconds per move from move one (Round 5 - 8)"]
[WhiteFideId "1706810"]
[BlackFideId "1701673"]
[WhiteElo "1836"]
[BlackElo "2115"]

1. e4 {[%clk 00:15:01]} {[%emt 00:00:03]} c5 {[%clk 00:15:04]} {[%emt
00:00:02]} 2. Nf3 {[%clk 00:15:03]} {[%emt 00:00:03]} Nc6 {[%clk 00:15:07]}
{[%emt 00:00:02]} 3. d4 {[%clk 00:15:06]} {[%emt 00:00:02]} cxd4 {[%clk
00:15:10]} {[%emt 00:00:02]} 4. Nxd4 {[%clk 00:15:08]} {[%emt 00:00:03]} Nf6
{[%clk 00:15:13]} {[%emt 00:00:02]} 5. Nc3 {[%clk 00:15:10]} {[%emt 00:00:04]}
e5 {[%clk 00:15:15]} {[%emt 00:00:02]} 6. Ndb5 {[%clk 00:15:10]} {[%emt
00:00:05]} d6 {[%clk 00:15:17]} {[%emt 00:00:02]} 7. Bg5 {[%clk 00:15:13]}
{[%emt 00:00:03]} a6 {[%clk 00:15:20]} {[%emt 00:00:02]} 8. Na3 {[%clk
00:15:16]} {[%emt 00:00:02]} b5 {[%clk 00:15:07]} {[%emt 00:00:17]} 9. Nd5
{[%clk 00:15:13]} {[%emt 00:00:08]} Be7 {[%clk 00:15:08]} {[%emt 00:00:04]} 10.
Bxf6 {[%clk 00:15:15]} {[%emt 00:00:04]} Bxf6 {[%clk 00:15:09]} {[%emt
00:00:04]} 11. c3 {[%clk 00:15:16]} {[%emt 00:00:04]} O-O {[%clk 00:14:45]}
{[%emt 00:00:30]} 12. Nc2 {[%clk 00:15:15]} {[%emt 00:00:05]} Bg5 {[%clk
00:14:27]} {[%emt 00:00:22]} 13. a4 {[%clk 00:15:17]} {[%emt 00:00:04]} bxa4
{[%clk 00:14:19]} {[%emt 00:00:13]} 14. Rxa4 {[%clk 00:15:18]} {[%emt
00:00:03]} a5 {[%clk 00:14:08]} {[%emt 00:00:16]} 15. Bb5 {[%clk 00:15:19]}
{[%emt 00:00:04]} Ne7 {[%clk 00:13:30]} {[%emt 00:00:43]} 16. Ncb4 {[%clk
00:15:18]} {[%emt 00:00:06]} Bb7 {[%clk 00:11:15]} {[%emt 00:02:20]} 17. Nxe7+
{[%clk 00:14:33]} {[%emt 00:00:50]} Qxe7 {[%clk 00:11:10]} {[%emt 00:00:10]} 18.
Nd5 {[%clk 00:13:38]} {[%emt 00:01:01]} Qd8 {[%clk 00:09:21]} {[%emt 00:01:54]}
19. O-O {[%clk 00:13:01]} {[%emt 00:00:42]} f5 {[%clk 00:09:19]} {[%emt
00:00:06]} 20. exf5 {[%clk 00:11:38]} {[%emt 00:01:28]} Rxf5 {[%clk 00:09:20]}
{[%emt 00:00:03]} 21. Bc4 {[%clk 00:10:39]} {[%emt 00:01:05]} Kh8 {[%clk
00:09:01]} {[%emt 00:00:25]} 22. Ne3 {[%clk 00:10:05]} {[%emt 00:00:38]} Bxe3
{[%clk 00:08:28]} {[%emt 00:00:38]} 23. fxe3 {[%clk 00:10:07]} {[%emt
00:00:03]} Rxf1+ {[%clk 00:08:31]} {[%emt 00:00:02]} 24. Qxf1 {[%clk 00:09:55]}
{[%emt 00:00:17]} d5 {[%clk 00:07:36]} {[%emt 00:00:59]} 25. Ba2 {[%clk
00:09:34]} {[%emt 00:00:27]} e4 {[%clk 00:06:45]} {[%emt 00:00:56]} 26. Rd4
{[%clk 00:09:16]} {[%emt 00:00:22]} Qg5 {[%clk 00:06:31]} {[%emt 00:00:19]} 27.
Qf4 {[%clk 00:09:05]} {[%emt 00:00:16]} Qh5 {[%clk 00:05:05]} {[%emt 00:01:32]}
28. g4 {[%clk 00:08:47]} {[%emt 00:00:22]} Qh4 {[%clk 00:04:35]} {[%emt
00:00:35]} 29. Bxd5 {[%clk 00:07:19]} {[%emt 00:01:34]} Qe1+ {[%clk 00:04:31]}
{[%emt 00:00:09]} 30. Kg2 {[%clk 00:07:21]} {[%emt 00:00:03]} Qe2+ {[%clk
00:04:27]} {[%emt 00:00:09]} 31. Kh3 {[%clk 00:07:20]} {[%emt 00:00:05]} Bxd5
{[%clk 00:04:02]} {[%emt 00:00:30]} 32. Rxd5 {[%clk 00:07:21]} {[%emt
00:00:03]} Qxb2 {[%clk 00:03:52]} {[%emt 00:00:16]} 33. Rxa5 {[%clk 00:06:21]}
{[%emt 00:01:05]} Rd8 {[%clk 00:03:41]} {[%emt 00:00:15]} 34. Qxe4 {[%clk
00:05:23]} {[%emt 00:01:03]} Qxc3 {[%clk 00:03:00]} {[%emt 00:00:46]} 35. Ra8
{[%clk 00:05:15]} {[%emt 00:00:14]} Qxe3+ {[%clk 00:02:48]} {[%emt 00:00:17]}
36. Qxe3 {[%clk 00:05:13]} {[%emt 00:00:06]} Rxa8 {[%clk 00:02:52]} 37. Qe7
{[%clk 00:05:02]} {[%emt 00:00:17]} h6 {[%clk 00:02:53]} {[%emt 00:00:04]} 38.
Kg3 {[%clk 00:05:03]} {[%emt 00:00:04]} Rb8 {[%clk 00:02:45]} {[%emt 00:00:13]}
39. h4 {[%clk 00:04:58]} {[%emt 00:00:11]} Kh7 {[%clk 00:02:40]} {[%emt
00:00:10]} 40. Kf4 {[%clk 00:04:55]} {[%emt 00:00:08]} Rg8 {[%clk 00:02:39]}
{[%emt 00:00:05]} 41. g5 {[%clk 00:04:35]} {[%emt 00:00:26]} hxg5+ {[%clk
00:02:43]} {[%emt 00:00:02]} 42. hxg5 {[%clk 00:04:18]} {[%emt 00:00:22]} Rb8
{[%clk 00:02:44]} {[%emt 00:00:03]} 43. Qe4+ {[%clk 00:04:13]} {[%emt
00:00:10]} Kh8 {[%clk 00:02:33]} {[%emt 00:00:16]} 44. g6 {[%clk 00:04:13]}
{[%emt 00:00:05]} Rf8+ {[%clk 00:02:37]} {[%emt 00:00:01]} 45. Kg5 {[%clk
00:04:12]} {[%emt 00:00:05]} Re8 {[%clk 00:02:35]} {[%emt 00:00:08]} 1-0

[Event "Goteborg Open 2018"]
[Site "Molnlycke kulturhus, Biblioteksgatan 2, Molnlycke, Sweden"]
[Date "2018.08.17"]
[Round "4.1"]
[White "Rydstrom, Tom"]
[Black "Golubka, Petro"]
[Result "0-1"]
[TimeControl "15 minutes + 5 seconds per move from move one (Round 1 - 4) / 90 minutes + 30 seconds per move from move one (Round 5 - 8)"]
[WhiteTitle "FM"]
[BlackTitle "IM"]
[WhiteFideId "1714830"]
[BlackFideId "14114224"]
[WhiteElo "2316"]
[BlackElo "2478"]

1. e4 {[%clk 00:15:04]} e5 {[%clk 00:15:04]} {[%emt 00:00:02]} 2. Nf3 {[%clk
00:15:08]} Nc6 {[%clk 00:15:08]} 3. Bb5 {[%clk 00:15:03]} {[%emt 00:00:10]} a6
{[%clk 00:15:12]} {[%emt 00:00:02]} 4. Ba4 {[%clk 00:15:07]} {[%emt 00:00:01]}
Nf6 {[%clk 00:15:12]} {[%emt 00:00:04]} 5. d3 {[%clk 00:15:11]} {[%emt
00:00:01]} d6 {[%clk 00:15:15]} {[%emt 00:00:03]} 6. c3 {[%clk 00:15:10]}
{[%emt 00:00:05]} b5 {[%clk 00:15:14]} {[%emt 00:00:05]} 7. Bb3 {[%clk
00:15:01]} {[%emt 00:00:15]} Be7 {[%clk 00:15:16]} {[%emt 00:00:03]} 8. Nbd2
{[%clk 00:15:01]} {[%emt 00:00:05]} O-O {[%clk 00:15:17]} {[%emt 00:00:03]} 9.
Nf1 {[%clk 00:15:03]} {[%emt 00:00:04]} Na5 {[%clk 00:15:19]} {[%emt 00:00:03]}
10. Bc2 {[%clk 00:15:07]} c5 {[%clk 00:15:24]} 11. Ng3 {[%clk 00:15:11]} {[%emt
00:00:01]} Re8 {[%clk 00:15:21]} {[%emt 00:00:09]} 12. O-O {[%clk 00:15:14]}
{[%emt 00:00:02]} Bf8 {[%clk 00:15:14]} {[%emt 00:00:10]} 13. Re1 {[%clk
00:15:16]} {[%emt 00:00:04]} Nc6 {[%clk 00:15:10]} {[%emt 00:00:10]} 14. a4
{[%clk 00:15:13]} {[%emt 00:00:08]} b4 {[%clk 00:15:13]} {[%emt 00:00:02]} 15.
h3 {[%clk 00:15:02]} {[%emt 00:00:16]} h6 {[%clk 00:14:59]} {[%emt 00:00:19]}
16. Be3 {[%clk 00:14:56]} {[%emt 00:00:12]} Rb8 {[%clk 00:14:46]} {[%emt
00:00:18]} 17. d4 {[%clk 00:14:19]} {[%emt 00:00:42]} exd4 {[%clk 00:14:15]}
{[%emt 00:00:37]} 18. cxd4 {[%clk 00:14:22]} {[%emt 00:00:02]} c4 {[%clk
00:14:13]} {[%emt 00:00:07]} 19. d5 {[%clk 00:14:03]} {[%emt 00:00:23]} Na5
{[%clk 00:13:59]} {[%emt 00:00:20]} 20. Rc1 {[%clk 00:13:47]} {[%emt 00:00:21]}
Bd7 {[%clk 00:13:54]} {[%emt 00:00:09]} 21. Bb1 {[%clk 00:12:35]} {[%emt
00:01:18]} b3 {[%clk 00:13:15]} {[%emt 00:00:44]} 22. Bd2 {[%clk 00:12:20]}
{[%emt 00:00:20]} Rc8 {[%clk 00:12:44]} {[%emt 00:00:36]} 23. Bc3 {[%clk
00:11:45]} {[%emt 00:00:40]} Bxa4 {[%clk 00:12:46]} {[%emt 00:00:04]} 24. Nd4
{[%clk 00:07:39]} {[%emt 00:04:11]} Nb7 {[%clk 00:11:28]} {[%emt 00:01:23]} 25.
Qf3 {[%clk 00:07:03]} {[%emt 00:00:40]} Re5 {[%clk 00:10:31]} {[%emt 00:01:01]}
26. Ndf5 {[%clk 00:06:41]} {[%emt 00:00:28]} g6 {[%clk 00:10:28]} {[%emt
00:00:08]} 27. Bxe5 {[%clk 00:06:36]} {[%emt 00:00:12]} dxe5 {[%clk 00:10:31]}
{[%emt 00:00:01]} 28. Ne3 {[%clk 00:06:40]} Nd6 {[%clk 00:10:31]} {[%emt
00:00:06]} 29. Ne2 {[%clk 00:05:25]} {[%emt 00:01:17]} Bg7 {[%clk 00:10:01]}
{[%emt 00:00:37]} 30. Nc3 {[%clk 00:05:11]} {[%emt 00:00:19]} Bb5 {[%clk
00:09:56]} {[%emt 00:00:09]} 31. Qg3 {[%clk 00:05:15]} {[%emt 00:00:02]} Qe7
{[%clk 00:09:49]} {[%emt 00:00:12]} 32. Ng4 {[%clk 00:05:16]} {[%emt 00:00:05]}
Nxg4 {[%clk 00:09:18]} {[%emt 00:00:36]} 33. Qxg4 {[%clk 00:05:09]} {[%emt
00:00:12]} h5 {[%clk 00:09:07]} {[%emt 00:00:16]} 34. Qf3 {[%clk 00:04:33]}
{[%emt 00:00:40]} Bh6 {[%clk 00:09:07]} {[%emt 00:00:03]} 35. Rcd1 {[%clk
00:04:35]} {[%emt 00:00:05]} Kg7 {[%clk 00:09:01]} {[%emt 00:00:11]} 36. g3
{[%clk 00:04:33]} {[%emt 00:00:08]} Bd7 {[%clk 00:09:02]} {[%emt 00:00:03]} 37.
Qg2 {[%clk 00:04:34]} {[%emt 00:00:03]} h4 {[%clk 00:08:58]} {[%emt 00:00:10]}
38. Rf1 {[%clk 00:04:34]} {[%emt 00:00:04]} hxg3 {[%clk 00:08:49]} {[%emt
00:00:14]} 39. fxg3 {[%clk 00:04:28]} {[%emt 00:00:13]} Be3+ {[%clk 00:08:51]}
{[%emt 00:00:01]} 40. Kh2 {[%clk 00:04:08]} {[%emt 00:00:26]} Rh8 {[%clk
00:08:46]} {[%emt 00:00:09]} 41. g4 {[%clk 00:03:57]} {[%emt 00:00:16]} Qg5
{[%clk 00:08:40]} {[%emt 00:00:09]} 42. Rf3 {[%clk 00:03:49]} {[%emt 00:00:16]}
Bd4 {[%clk 00:08:07]} {[%emt 00:00:38]} 43. Rg3 {[%clk 00:00:54]} {[%emt
00:02:59]} a5 {[%clk 00:07:34]} {[%emt 00:00:39]} 44. Rf1 {[%clk 00:00:58]} a4
{[%clk 00:07:26]} {[%emt 00:00:14]} 45. Rgf3 {[%clk 00:00:28]} {[%emt
00:00:34]} Qxg4 {[%clk 00:07:18]} {[%emt 00:00:13]} 46. Rg3 {[%clk 00:00:23]}
{[%emt 00:00:10]} Qh5 {[%clk 00:06:40]} {[%emt 00:00:38]} 47. Rff3 {[%clk
00:00:27]} {[%emt 00:00:07]} Qh6 {[%clk 00:05:56]} {[%emt 00:00:47]} 48. Rf1
{[%clk 00:00:08]} {[%emt 00:00:24]} Be3 {[%clk 00:05:22]} {[%emt 00:00:39]} 49.
Ne2 {[%clk 00:00:10]} {[%emt 00:00:04]} c3 {[%clk 00:05:17]} {[%emt 00:00:10]}
50. Nxc3 {[%emt 00:00:07]} Bf4 {[%clk 00:05:19]} {[%emt 00:00:02]} 51. Rxf4
{[%clk 00:00:10]} {[%emt 00:00:04]} Qxf4 {[%clk 00:05:23]} {[%emt 00:00:01]} 52.
Ne2 {[%clk 00:00:10]} {[%emt 00:00:05]} Qd2 {[%clk 00:05:09]} {[%emt 00:00:17]}
53. Ng1 {[%clk 00:00:12]} {[%emt 00:00:04]} Qxg2+ {[%clk 00:05:07]} {[%emt
00:00:08]} 54. Kxg2 {[%clk 00:00:13]} {[%emt 00:00:04]} Rc8 {[%clk 00:04:57]}
{[%emt 00:00:14]} 55. Ne2 {[%clk 00:00:08]} {[%emt 00:00:10]} Nc4 {[%clk
00:04:56]} {[%emt 00:00:05]} 56. Rc3 {[%emt 00:00:09]} 0-1